Cogmind - Beta 12 @@@ ROGUE MODE // 2023.03.08 @ 21:18:47 Player: TrialByFire Result: Destroyed by as-16703 with Assembled Heavy Rifle Performance ------------- Evolutions (0) 0 Regions Visited (2) 400 Robots Destroyed (9) 45 Value Destroyed (345) 345 Prototype IDs (2) 40 Alien Tech Used (0) 0 Bonus (118) 118 TOTAL SCORE: 948 Bonus ------- Follower Combat Kills 118 Cogmind --------- Core Integrity 0/250 Matter 280/300 Energy 230/250 System Corruption 0% Temperature Cool (0) Movement Walking (260) Ox2 Location -10/Mines Parts ------- > --- POWER (1) -------- Ion Engine > --- PROPULSION (2) --- Aluminum Leg Aluminum Leg > --- UTILITY (2) ------ High-capacity Storage Unit Light Armor Plating > --- WEAPON (2) ------- Hammer > --- INVENTORY (20) --- Ion Engine Light Ion Engine Light Nuclear Core Aluminum Leg Carbon-fiber Leg Improved Heat Sink Improved Heat Sink High-capacity Battery (250) Particle Cannon Particle Cannon Particle Cannon Peak State ------------ > --- POWER ------------ Ion Engine > --- PROPULSION ------- Aluminum Leg Aluminum Leg > --- UTILITY ---------- Improved Heat Sink High-capacity Storage Unit > --- WEAPON ----------- Particle Cannon Hammer > --- INVENTORY -------- Ion Engine Light Ion Engine Aluminum Leg Aluminum Leg Aluminum Leg Aluminum Leg Carbon-fiber Leg Improved Heat Sink High-capacity Battery Light Armor Plating Particle Cannon Particle Cannon Particle Cannon [Rating: 12] Favorites ----------- Power Ion Engine Engine Ion Engine Propulsion Aluminum Leg Leg Aluminum Leg Utility Improved Heat Sink Device Improved Heat Sink Storage Small Storage Unit Protection Light Armor Plating Weapon Assault Rifle Energy Cannon Particle Cannon Ballistic Gun Assault Rifle Impact Weapon Hammer Build | -11 -10 -10 ------- Run | Jun Mat Min Slots Evolved . | . . . Power . | . . . Propulsion . | . . . Utility . | . . . Weapon . | . . . Parts Attached 17 | 6 4 7 Power 1 | 1 . . Engine 1 | 1 . . Core . | . . . Reactor . | . . . Propulsion 7 | 2 1 4 Treads . | . . . Leg 7 | 2 1 4 Wheel . | . . . Hover . | . . . Flight . | . . . Utility 5 | 1 3 1 Device 2 | . 2 . Storage 2 | 1 1 . Processor . | . . . Hackware . | . . . Protection 1 | . . 1 Artifact . | . . . Weapon 4 | 2 . 2 Energy Gun . | . . . Energy Cannon 1 | . . 1 Ballistic Gun 2 | 2 . . Ballistic Cannon . | . . . Launcher . | . . . Special Weapon . | . . . Impact Weapon 1 | . . 1 Slashing Weapon . | . . . Piercing Weapon . | . . . Special Melee Weapon . | . . . Unidentified Prototypes . | . . . Parts Lost 6 | . 1 5 Power . | . . . Propulsion 5 | . 1 4 Utility . | . . . Weapon 1 | . . 1 Highest Loss Streak 4 | . 1 4 To Critical Strikes . | . . . Average Slot Usage (%) 94 | . 92 98 Engine 14 | . 14 14 Leg 25 | . 24 27 Device 11 | . 10 14 Storage 14 | . 14 14 Energy Cannon 2 | . . 7 Ballistic Gun 20 | . 28 9 Impact Weapon 4 | . . 10 Naked Turns . | . . . Heaviest Build 52 | 13 49 52 Greatest Support 20 | 20 20 20 Greatest Overweight (x) 2 | . 2 2 Average Overweight (x) . | . . 2 Largest Inventory Capacity 20 | 8 20 20 Average Capacity 13 | 7 10 20 Most Carried 14 | 6 8 14 Average Carried 8 | 3 7 10 Final Capacity 20 | 8 20 20 Final Carried 11 | 6 8 11 Class Distribution -------------------- 100% | Mutant Dominant Class ---------------- Mutant | -10/Materials Mutant | -10/Mines Resources | -11 -10 -10 ----------- Run | Jun Mat Min Matter Collected 495 | 202 195 98 Remotely . | . . . Salvage Created 401 | . 249 152 Parts 20 | . 14 6 Haulers Intercepted . | . . . Recyclers Shooed . | . . . Parts Field Recycled . | . . . Retrieved Matter . | . . . Parts Self-Destructed . | . . . Prevented . | . . . Kills | -11 -10 -10 ------- Run | Jun Mat Min Combat Hostiles Destroyed 10 | . 6 4 Guns 7 | . 6 1 Cannons 3 | . . 3 Classes Destroyed 2 | . 1 1 Grunt 9 | . 6 3 Assembled 1 | . . 1 Best Kill Streak 2 | . 2 2 Combat Bots Only 2 | . 2 2 Max Kills in Single Turn 1 | . 1 1 Gunslinging . | . . . Exploded . | . . . Melee . | . . . Uniques/NPCs Destroyed . | . . . Combat | -11 -10 -10 -------- Run | Jun Mat Min Damage Taken 1058 | . 395 663 Core 254 | . 88 166 Absorbed by Shields . | . . . Core Remaining (%) 100 | 100 . . Volleys Fired 51 | . 34 17 Largest 2 | . 2 1 Hottest 68 | . 40 68 Shots Fired 85 | . 68 17 Gun 76 | . 68 8 Cannon 9 | . . 9 Launcher . | . . . Special . | . . . Kinetic 76 | . 68 8 Thermal 9 | . . 9 Explosive . | . . . Electromagnetic . | . . . Robot Hit Streak 6 | . 6 3 Robot Miss Streak 8 | . 8 3 Penetration Max . | . . . Secondary Targets . | . . . Shots Hit Robots 46 | . 33 13 Core Hits 21 | . 14 7 Critical Kills . | . . . Critical Parts Destroyed . | . . . Critical Strikes . | . . . Melee Attacks 3 | . . 3 Impact 3 | . . 3 Slashing . | . . . Piercing . | . . . Sneak Attacks . | . . . Combat Hostiles . | . . . Follow-up Attacks . | . . . Damage Inflicted 629 | . 377 252 Guns 444 | . 377 67 Cannons 124 | . . 124 Explosions . | . . . Melee 61 | . . 61 Ramming . | . . . Kinetic 444 | . 377 67 Thermal 124 | . . 124 Explosive . | . . . Electromagnetic . | . . . Impact 61 | . . 61 Slashing . | . . . Piercing . | . . . Highest Corruption . | . . . Average Corruption . | . . . Corruption Purged . | . . . Corruption Blocked . | . . . Overload Shots . | . . . Overflow Damage . | . . . Projectiles . | . . . Explosions . | . . . Melee . | . . . Knockbacks . | . . . Impact . | . . . Kinetic . | . . . Secondary . | . . . Self-Inflicted Damage . | . . . Shots . | . . . Rammed . | . . . Targets Rammed . | . . . Kicked . | . . . Crushed . | . . . Highest Temperature 27 | . 17 27 Average Temperature 12 | . 8 16 Received Heat Transfer 380 | . 255 125 Siege Activations . | . . . Robots Corrupted . | . . . Combat Hostiles . | . . . Parts Fried . | . . . Impact Corruptions . | . . . Robots Melted . | . . . Combat Hostiles . | . . . Parts Melted . | . . . Heat Transferred 222 | . . 222 Parts Sabotaged . | . . . Parts Stolen . | . . . Parts Stripped . | . . . Power Chain Reactions . | . . . Missiles Intercepted . | . . . Alert | -11 -10 -10 ------- Run | Jun Mat Min Peak Influence 254 | . 254 171 Initial 26 | . . 26 Average 110 | . 124 114 Maximum Alert Level 1 | . 1 . Low Security (%) 88 | 100 79 100 Level 1 11 | . 20 . Level 2 . | . . . Level 3 . | . . . Level 4 . | . . . Level 5 . | . . . High Security . | . . . Max Security . | . . . Squads Dispatched 3 | . 2 1 Investigation . | . . . Extermination . | . . . Reinforcement 2 | . 2 . Assault 1 | . . 1 Garrison . | . . . Intercept . | . . . Searches Triggered . | . . . Construction Impeded . | . . . Haulers Reinforced . | . . . Active Scanning Responses . | . . . Cargo Convoy Interrupts . | . . . Stealth | -11 -10 -10 --------- Run | Jun Mat Min Distress Signals 4 | . 4 . Communications Jammed . | . . . Distress Signals . | . . . Times Spotted 35 | . 19 16 Peak Tracking Total 13 | . 5 13 Tactical Retreats 3 | . 1 2 Traps | -11 -10 -10 ------- Run | Jun Mat Min Traps Triggered . | . . . Indirectly . | . . . Trap Hack Attempts . | . . . Triggered . | . . . Disarmed . | . . . Reprogrammed . | . . . Reused . | . . . Traps Extracted . | . . . Installed . | . . . Triggered . | . . . Machines | -11 -10 -10 ---------- Run | Jun Mat Min Machines Disabled . | . . . Max in Single Turn . | . . . Machines Repaired . | . . . Machines Sabotaged . | . . . Overloaded Fab Kills . | . . . Hacking | -11 -10 -10 --------- Run | Jun Mat Min Machines Accessed 2 | . 2 . Terminals 2 | . 2 . Fabricators . | . . . Repair Stations . | . . . Recycling Units . | . . . Scanalyzers . | . . . Garrison Access . | . . . Total Hacks 7 | . 7 . Successful 3 | . 3 . Failed 4 | . 4 . Catastrophic . | . . . Database Lockouts . | . . . Manual . | . . . Terminals 7 | . 7 . Fabricators . | . . . Repair Stations . | . . . Recycling Units . | . . . Scanalyzers . | . . . Garrison Access . | . . . Terminal Hacks 3 | . 3 . Record 1 | . 1 . Prototype ID Bank 1 | . 1 . Locate Traps 1 | . 1 . Fabricator Hacks . | . . . Repair Station Hacks . | . . . Recycling Unit Hacks . | . . . Scanalyzer . | . . . Garrison Access Hacks . | . . . Unauthorized Hacks . | . . . Terminals . | . . . Fabricators . | . . . Repair Stations . | . . . Recycling Units . | . . . Scanalyzers . | . . . Garrison Access . | . . . Data Cores Recovered . | . . . Used . | . . . Hacking Detections 2 | . 2 . Full Trace Events . | . . . Feedback Events . | . . . Feedback Blocked . | . . . Robot Schematics Acquired . | . . . Robots Built . | . . . Authchips . | . . . Time . | . . . Total Robot Build Rating . | . . . Part Schematics Acquired . | . . . Parts Built . | . . . Authchips . | . . . Time . | . . . Total Part Build Rating . | . . . Parts Repaired . | . . . Time . | . . . Parts Recycled . | . . . Recycled Matter . | . . . Retrieved Matter . | . . . Retrieved Components . | . . . Parts Scanalyzed . | . . . Part Schematics Acquired . | . . . Parts Damaged . | . . . Bothacking | -11 -10 -10 ------------ Run | Jun Mat Min Used RIF Installer . | . . . Robots Hacked . | . . . Non-combat . | . . . Combat . | . . . Robot Hacks Applied . | . . . Relay Couplers Released . | . . . Fabnet Peak Effective % . | . . . Robots Rewired . | . . . Allies Hacked . | . . . Hacks Repelled . | . . . Allies | -11 -10 -10 -------- Run | Jun Mat Min Total Allies 1 | . . 1 Largest Group 1 | . . 1 Highest-Rated Group 31 | . . 31 Highest-Rated Ally 31 | . . 31 Total Orders . | . . . Ally Attacks 28 | . . 28 Total Damage 338 | . . 338 Kills 6 | . . 6 Allies Corrupted . | . . . Allies Melted . | . . . Intel | -11 -10 -10 ------- Run | Jun Mat Min Robot Analysis Total . | . . . Derelict Logs Recovered . | . . . Drone Launches . | . . . Drone Recoveries . | . . . Exploration | -11 -10 -10 ------------- Run | Jun Mat Min Turns Passed 876 | 74 492 310 Spaces Moved 382 | 51 235 96 Core 7 | 7 . . Treads . | . . . Legs 375 | 44 235 96 Wheels . | . . . Hover . | . . . Flight . | . . . Fastest Speed 50 | 50 120 260 Average Speed 173 | 110 151 260 Slowest Speed 260 | 120 260 260 Overloaded Moves . | . . . Propulsion Burnouts . | . . . Robots Hopped . | . . . Cave-ins Triggered . | . . . Exploration Rate (%) 21 | 3 38 23 Regions Visited 2 Branch Regions 1 Pre-discovered Areas . | . . . Known Exits Taken . | . . . Unknown Exits Taken 2 | 1 1 . Scrap Searched . | . . . Spaces Dug . | . . . Terrain Destroyed . | . . . Melee . | . . . Projectile . | . . . AOE . | . . . Terrain Rammed . | . . . Walls Destroyed . | . . . Machines Disabled . | . . . Actions | -11 -10 -10 --------- Run | Jun Mat Min Total 517 | 68 315 134 Wait 19 | . 19 . Move 380 | 50 234 96 Hop . | . . . Pick Up 35 | 12 14 9 Fast Attach . | . . . Attach 13 | 6 2 5 Detach . | . . . Swap 4 | . 2 2 Drop 12 | . 10 2 Fire 51 | . 34 17 Melee 3 | . . 3 Ram . | . . . Kick . | . . . Crush . | . . . Escape Stasis . | . . . Rewire . | . . . Trap . | . . . Miscellaneous . | . . . Route ------- -11/Junkyard -10/Materials (discovered 2 exits: [*Min x2]) -10/Mines (discovered 1 exit: [*Mat]) History --------- Turn | Location | Event 8 | -11/Junkyard | Discovered new exit (range 15) 75 | -11/Junkyard | Entered Materials 298 | -10/Materials | Discovered new exit (range 10) 308 | -10/Materials | Build established: Mutant 342 | -10/Materials | Discovered new exit (range 13) 567 | -10/Materials | Entered Mines 568 | -10/Mines | Met a Derelict testing a Signal Generator 601 | -10/Mines | Joined a pair of Derelicts in attacking an 0b10 outpost 806 | -10/Mines | Assembled infested the area 811 | -10/Mines | Assisted by a Guerilla fighting off Assembled 831 | -10/Mines | Core integrity fell below 50% 864 | -10/Mines | Discovered new exit (range 16) 865 | -10/Mines | Core integrity fell below 20% 877 | -10/Mines | Destroyed by as-16703 with Assembled Heavy Rifle Last Messages --------------- 00820_ HV Slug penetrates as-99511. 00820_ as-99511 suffers critical hit (Destroy). 00820_ as-99511 destroyed. 00823_ J0-SZ1(h) destroyed. 00825_ T-07 Excavator destroyed. 00825_ R-06 Scavenger destroyed. 00837_ Aluminum Leg destroyed. 00846_ G-34 Mercenary destroyed. 00848_ as-58165 destroyed. 00849_ Aluminum Leg destroyed. 00854_ Acquired 15 matter. 00856_ R-06 Scavenger collects Aluminum Leg. 00862_ R-06 Scavenger suffers critical hit (Destroy). 00862_ R-06 Scavenger destroyed. 00864_ EXIT=FOUND 00867_ K-01 Serf collects debris. 00869_ Particle Cannon destroyed. 00870_ K-01 Serf collects debris. 00872_ Aluminum Leg destroyed. 00876_ K-01 Serf collects debris. Map ----- +----------------------------------------------------+ | | | | | | | | | | | | | | | | | | | ??????????????????????????????????????????? | | ??????????????????????????????????????????? | | ?????????????#######??????????????????????? | | ???????????## ##?????????????????????? | | ???????????# #?????????????????????? | | ??????????## """ #?????????????????????? | | ?????????## """ #?????????????????????? | | ?????????# """ #??????###?????????????? | | #????????# #????### ##????????????? | | ##????????# #????## #????????????? | | #?????????# #???## #????????????? | | *########?## #????# #?????????????? | | %% %*% %### ##???## #??????????????? | | !% ## #???## #???????????????? | | ####### %%" = #???# ########## #?? | | ??????#### =%##### < #?? | | ????????## [% %%=a @ k #??? | | ####????# =! #####a ##########????????? | | # ##???# =%=#???## #?????????????????? | | #???## %!!#????## ##?????????????????? | | #????### =#?????####??????????????????? | | ##??????# %*???????????????????????????? | | ##???????# !#???????????????????????????? | | ###????????#% #???????????????????????????? | | ???????????#! #???????????????????????????? | | ??????????? ???????????????????????????? | | ??????????? ???????????????????????????? | | ?????????? % ???????????????????????????? | | ?????????? * ???????????????????????????? | | ?????????? % ???????????????????????????? | | ????????? = ???????????????????????????? | | ????????? ###???????????????????????????? | | ?????????###??????????????????????????????? | | ??????????????????????????????????????????? | | ??????????????????????????????????????????? | | ??????????????????????????????????????????? | | ??????????????????????????????????????????? | | ??????????????????????????????????????????? | | ??????????????????????????????????????????? | | ??????????????????????????????????????????? | | ??????????????????????????????????????????? | +----------------------------------------------------+ Best States ------------- Heat Dissipation 39 Energy Generation 10 Energy Capacity 250 Matter Stores 300 Matter Capacity 300 Sight Range 16 Terrain Scan Density 10 Evasion (%) 55 Item Schematics ----------------- None Robot Schematics ------------------ None Fabricated ------------ Nothing Alien Tech Used ----------------- None Achievements -------------- None Challenges ------------ None Game ------ Seed BoreSkeletonBay Manual? 0 Play Time 00:12:50 Cumulative 32.2 hours Start 2023.03.08 @ 21:05:56 End 2023.03.08 @ 21:18:47 Sessions 1 Manual Loads 0 Difficulty Rogue Special Mode None Game No. 24 Rogue 24 Adventurer 0 Explorer 0 Win Type - Total 0 Types 0/0/0/0/0/0/0/0/0 Lore% 17 Gallery% 26 Achievement% 20 Wizard Run 0 Options --------- ASCII 0 Keyboard 0 Movement Numpad Keybinds 0 Fullscreen 1 Font 24/Terminus Map View 76x50 Tactical HUD 1 Map Filters NONE Filters NONE Steam 1 RUN: 67066bcc-9c22-4bae-b331-1285c9afb776